[Event "Torneo Nuevo Centro. Jornada 10"]
[Site "Chess.com"]
[Date "2020.08.21"]
[Round "8"]
[White "Donate Moreno, Silvia"]
[Black "Gil López, Alejandro"]
[Result "0-1"]
[WhiteElo "1859"]
[BlackElo "2211"]
[TimeControl "180+2"]
[EndTime "11:56:34 PDT"]
[Termination "Victoria de AglVal0313 por abandono"]

1. e4 {[%clk 0:03:01.8]} 1... c5 {[%clk 0:02:58.7]} 2. Nf3 {[%clk 0:03:02.5]}
2... g6 {[%clk 0:02:56.8]} 3. d4 {[%clk 0:03:01.3]} 3... cxd4 {[%clk 0:02:57.8]}
4. Nxd4 {[%clk 0:03:03.2]} 4... Bg7 {[%clk 0:02:59.2]} 5. c4 {[%clk 0:03:03.8]}
5... Nc6 {[%clk 0:02:59.5]} 6. Be3 {[%clk 0:03:03.3]} 6... d6 {[%clk 0:02:59.8]}
7. Nc3 {[%clk 0:03:04.1]} 7... Nf6 {[%clk 0:03:00.2]} 8. Be2 {[%clk 0:03:04.5]}
8... O-O {[%clk 0:03:00.8]} 9. O-O {[%clk 0:03:05]} 9... Bd7 {[%clk 0:03:01.3]}
10. Qd2 {[%clk 0:03:05.7]} 10... Rb8 {[%clk 0:03:01.1]} 11. f3 {[%clk
0:03:02.8]} 11... a6 {[%clk 0:02:58.5]} 12. a4 {[%clk 0:02:44.8]} 12... Qa5
{[%clk 0:02:45.6]} 13. Rfd1 {[%clk 0:02:36.8]} 13... Rfd8 {[%clk 0:02:37.3]} 14.
Nc2 {[%clk 0:02:19.9]} 14... Be6 {[%clk 0:02:28.3]} 15. Rdb1 {[%clk 0:02:00.9]}
15... Rdc8 {[%clk 0:02:20.7]} 16. b4 {[%clk 0:01:59.9]} 16... Qd8 {[%clk
0:02:20.4]} 17. Na2 {[%clk 0:01:34.8]} 17... Nxe4 {[%clk 0:02:07.5]} 18. fxe4
{[%clk 0:01:34.2]} 18... Bxa1 {[%clk 0:02:08.8]} 19. Rxa1 {[%clk 0:01:36.1]}
19... Ne5 {[%clk 0:02:06.3]} 20. Bh6 {[%clk 0:01:15.1]} 20... Bxc4 {[%clk
0:01:49.8]} 21. Bxc4 {[%clk 0:01:07.7]} 21... Rxc4 {[%clk 0:01:51.7]} 22. Qe2
{[%clk 0:01:03.4]} 22... Qb6+ {[%clk 0:01:47.9]} 23. Ne3 {[%clk 0:01:02.2]}
23... Rxe4 {[%clk 0:01:48]} 24. Kh1 {[%clk 0:00:59.5]} 24... Ng4 {[%clk
0:01:44.4]} 25. a5 {[%clk 0:00:51.6]} 0

[Event "Torneo Nuevo Centro. Jornada 10"]
[Site "Chess.com"]
[Date "2020.08.21"]
[Round "8"]
[White "Ledezma Fortes, Jose Manuel"]
[Black "Blanco Solaz, Ramón"]
[Result "0-1"]
[WhiteElo "1783"]
[BlackElo "1996"]
[TimeControl "180+2"]
[EndTime "11:56:56 PDT"]
[Termination "Victoria de Rbs77 por jaque mate"]

1. c4 {[%clk 0:03:01.9]} 1... d6 {[%clk 0:03:00]} 2. d4 {[%clk 0:03:02.3]} 2...
g6 {[%clk 0:03:00.1]} 3. Bg5 {[%clk 0:03:02.6]} 3... h6 {[%clk 0:02:59.4]} 4.
Bh4 {[%clk 0:03:02.6]} 4... c5 {[%clk 0:03:00]} 5. e3 {[%clk 0:03:01.3]} 5...
Qb6 {[%clk 0:03:00.3]} 6. b3 {[%clk 0:02:59.6]} 6... Bg7 {[%clk 0:02:56]} 7.
dxc5 {[%clk 0:02:55.2]} 7... Qxc5 {[%clk 0:02:56.2]} 8. Nd2 {[%clk 0:02:52.7]}
8... Bxa1 {[%clk 0:02:56]} 9. Qxa1 {[%clk 0:02:53.2]} 9... Qe5 {[%clk
0:02:56.9]} 10. Qb1 {[%clk 0:02:48.7]} 10... Bf5 {[%clk 0:02:56.7]} 11. e4
{[%clk 0:02:45.6]} 11... Bd7 {[%clk 0:02:54.5]} 12. Ngf3 {[%clk 0:02:45.4]}
12... Qg7 {[%clk 0:02:55.1]} 13. Bd3 {[%clk 0:02:45.4]} 13... Nc6 {[%clk
0:02:55.4]} 14. O-O {[%clk 0:02:45.4]} 14... Nf6 {[%clk 0:02:52.9]} 15. b4
{[%clk 0:02:40.6]} 15... Ng4 {[%clk 0:02:42.6]} 16. Re1 {[%clk 0:02:38]} 16...
O-O {[%clk 0:02:36.8]} 17. b5 {[%clk 0:02:34.5]} 17... Nd4 {[%clk 0:02:29]} 18.
Bxe7 {[%clk 0:02:30]} 18... Rfe8 {[%clk 0:02:17.1]} 19. Bxd6 {[%clk 0:02:30.5]}
19... Rad8 {[%clk 0:02:16.3]} 20. c5 {[%clk 0:02:29.2]} 20... b6 {[%clk
0:01:51.3]} 21. h3 {[%clk 0:02:26]} 21... Nxf3+ {[%clk 0:01:31]} 22. Nxf3 {[%clk
0:02:26.1]} 22... Nf6 {[%clk 0:01:28.4]} 23. e5 {[%clk 0:02:24.2]} 23... Nh5
{[%clk 0:01:23]} 24. c6 {[%clk 0:02:24.4]} 24... Be6 {[%clk 0:01:21.2]} 25. c7
{[%clk 0:02:20]} 25... Rc8 {[%clk 0:01:15.7]} 26. Be4 {[%clk 0:02:20.1]} 26...
g5 {[%clk 0:00:58]} 27. Qd1 {[%clk 0:02:17]} 27... g4 {[%clk 0:00:55.7]} 28.
hxg4 {[%clk 0:02:17.4]} 28... Bxg4 {[%clk 0:00:55.9]} 29. Qd3 {[%clk 0:02:08.8]}
29... Nf4 {[%clk 0:00:47]} 30. Qb3 {[%clk 0:01:56.7]} 30... Be6 {[%clk
0:00:32.5]} 31. Qa3 {[%clk 0:01:55]} 31... Qxg2# {[%clk 0:00:32.7]} 0

[Event "Torneo Nuevo Centro. Jornada 10"]
[Site "Chess.com"]
[Date "2020.08.21"]
[Round "8"]
[White "Pardo Ruiz, Carlos"]
[Black "Yuste Valenzuela, Alejandro"]
[Result "0-1"]
[WhiteElo "1686"]
[BlackElo "1865"]
[TimeControl "180+2"]
[EndTime "11:56:59 PDT"]
[Termination "Victoria de alejandrito290 por jaque mate"]

1. e4 {[%clk 0:03:01.9]} 1... c5 {[%clk 0:02:59.8]} 2. Nf3 {[%clk 0:03:02.1]}
2... d6 {[%clk 0:03:00.8]} 3. d4 {[%clk 0:03:03.3]} 3... cxd4 {[%clk 0:03:02.7]}
4. Nxd4 {[%clk 0:03:04.8]} 4... Nf6 {[%clk 0:03:02.9]} 5. Nc3 {[%clk 0:03:05.9]}
5... g6 {[%clk 0:03:04.1]} 6. f3 {[%clk 0:03:04.9]} 6... Bg7 {[%clk 0:03:05.4]}
7. Be3 {[%clk 0:03:05.8]} 7... O-O {[%clk 0:03:06.7]} 8. Qd2 {[%clk 0:03:06.8]}
8... Nc6 {[%clk 0:03:07.9]} 9. g4 {[%clk 0:03:07.4]} 9... Be6 {[%clk 0:03:08]}
10. h4 {[%clk 0:03:04.9]} 10... h5 {[%clk 0:03:01.1]} 11. gxh5 {[%clk
0:03:04.8]} 11... Nxh5 {[%clk 0:03:01.6]} 12. Rg1 {[%clk 0:03:04.7]} 12... Nxd4
{[%clk 0:03:00.4]} 13. Bxd4 {[%clk 0:03:04.6]} 13... Rc8 {[%clk 0:02:52.9]} 14.
Bxg7 {[%clk 0:03:03.1]} 14... Kxg7 {[%clk 0:02:54.8]} 15. Qg5 {[%clk 0:02:59.9]}
15... Rh8 {[%clk 0:02:49.4]} 16. Bd3 {[%clk 0:02:51]} 16... Qb6 {[%clk
0:02:41.3]} 17. O-O-O {[%clk 0:02:43.6]} 17... Rc5 {[%clk 0:02:40]} 18. Qe3
{[%clk 0:02:39.8]} 18... Qa5 {[%clk 0:02:30.6]} 19. Qd4+ {[%clk 0:02:35.4]}
19... Kg8 {[%clk 0:02:27.6]} 20. a3 {[%clk 0:02:33.7]} 20... Nf4 {[%clk
0:02:11.7]} 21. Rh1 {[%clk 0:02:25.4]} 21... Rhh5 {[%clk 0:02:03.1]} 22. Rdg1
{[%clk 0:02:19.9]} 22... b5 {[%clk 0:01:59.8]} 23. Bxb5 {[%clk 0:02:09.9]} 23...
Rxb5 {[%clk 0:01:51.4]} 24. Nxb5 {[%clk 0:02:09.4]} 24... Ne2+ {[%clk 0:01:51]}
25. Kb1 {[%clk 0:02:09.4]} 25... Nxd4 {[%clk 0:01:49.8]} 26. Nxd4 {[%clk
0:02:11.3]} 26... Qe5 {[%clk 0:01:31.1]} 27. Nc6 {[%clk 0:02:06.1]} 27... Qf4
{[%clk 0:01:21.9]} 28. Nxe7+ {[%clk 0:01:54.9]} 28... Kg7 {[%clk 0:01:21.2]} 29.
Nc6 {[%clk 0:01:51.4]} 29... Rxh4 {[%clk 0:01:17.1]} 30. Rxh4 {[%clk 0:01:50.1]}
30... Qxh4 {[%clk 0:01:19]} 31. Nxa7 {[%clk 0:01:49.9]} 31... Qf2 {[%clk
0:01:19.2]} 32. Rc1 {[%clk 0:01:48.3]} 32... Qxa7 {[%clk 0:01:19.5]} 33. c4
{[%clk 0:01:49]} 33... Qd4 {[%clk 0:01:18.4]} 34. a4 {[%clk 0:01:46.8]} 34...
Bxc4 {[%clk 0:01:18.1]} 35. a5 {[%clk 0:01:47.5]} 35... Bd3+ {[%clk 0:01:18.7]}
36. Rc2 {[%clk 0:01:44.1]} 36... Qa4 {[%clk 0:01:13.4]} 37. a6 {[%clk 0:01:41]}
37... Qxc2+ {[%clk 0:01:13.6]} 38. Ka2 {[%clk 0:01:41.9]} 38... Qa4# {[%clk
0:01:14.6]} 0

[Event "Torneo Nuevo Centro. Jornada 10"]
[Site "Chess.com"]
[Date "2020.08.21"]
[Round "8"]
[White "Fente Fernandez, Jose Ignacio"]
[Black "Fitzpatrick Dimas  , Andrew "]
[Result "1-0"]
[WhiteElo "1512"]
[BlackElo "1031"]
[TimeControl "180+2"]
[EndTime "11:57:04 PDT"]
[Termination "Victoria de SrFente por abandono"]

1. e4 {[%clk 0:03:01.9]} 1... Nc6 {[%clk 0:02:57.6]} 2. d4 {[%clk 0:03:01.1]}
2... d5 {[%clk 0:02:55.7]} 3. exd5 {[%clk 0:03:00.5]} 3... Qxd5 {[%clk
0:02:55.2]} 4. Nf3 {[%clk 0:03:02.1]} 4... Bg4 {[%clk 0:02:51.6]} 5. Nc3 {[%clk
0:02:55.6]} 5... Qe6+ {[%clk 0:02:45.4]} 6. Be3 {[%clk 0:02:44.9]} 6... O-O-O
{[%clk 0:02:37.2]} 7. Qe2 {[%clk 0:02:17.6]} 7... Nf6 {[%clk 0:02:28.7]} 8.
O-O-O {[%clk 0:02:15]} 8... Ne4 {[%clk 0:02:20]} 9. d5 {[%clk 0:02:08]} 9...
Nxc3 {[%clk 0:02:12.6]} 10. bxc3 {[%clk 0:02:07.4]} 10... Qf6 {[%clk 0:02:06.6]}
11. dxc6 {[%clk 0:02:05.8]} 11... Qxc6 {[%clk 0:01:54.5]} 12. Rxd8+ {[%clk
0:01:55]} 12... Kxd8 {[%clk 0:01:53.4]} 13. Qd3+ {[%clk 0:01:45.9]} 13... Kc8
{[%clk 0:01:50.5]} 14. Ne5 {[%clk 0:01:45.4]} 14... Qe6 {[%clk 0:01:45.1]} 15.
Nxg4 {[%clk 0:01:36.3]} 15... Qxg4 {[%clk 0:01:43.7]} 16. Be2 {[%clk 0:01:33.1]}
16... Qxg2 {[%clk 0:01:39.8]} 17. Rd1 {[%clk 0:01:31.1]} 17... b6 {[%clk
0:01:23.1]} 18. Qa6+ {[%clk 0:01:08.5]} 18... Qb7 {[%clk 0:00:33.8]} 19. Rd8+
{[%clk 0:00:53.9]} 1

[Event "Torneo Nuevo Centro. Jornada 10"]
[Site "Chess.com"]
[Date "2020.08.21"]
[Round "8"]
[White "De Nacimiento Montano, Antonio"]
[Black "Serrano Requena, Guillem"]
[Result "1-0"]
[WhiteElo "1855"]
[BlackElo "1317"]
[TimeControl "180+2"]
[EndTime "11:57:18 PDT"]
[Termination "Victoria de Twitch_adn4815 por jaque mate"]

1. e4 {[%clk 0:03:01.9]} 1... c5 {[%clk 0:03:00.5]} 2. Nf3 {[%clk 0:03:02.3]}
2... g6 {[%clk 0:03:00]} 3. d4 {[%clk 0:03:01.6]} 3... cxd4 {[%clk 0:03:00.8]}
4. Nxd4 {[%clk 0:03:03]} 4... Bg7 {[%clk 0:03:01.7]} 5. c4 {[%clk 0:03:04.4]}
5... Nc6 {[%clk 0:03:02.3]} 6. Be3 {[%clk 0:03:03.6]} 6... a6 {[%clk 0:03:02.6]}
7. Nc3 {[%clk 0:03:04.8]} 7... e6 {[%clk 0:03:03.1]} 8. Be2 {[%clk 0:03:03.9]}
8... d6 {[%clk 0:03:04.1]} 9. O-O {[%clk 0:03:05.1]} 9... Nge7 {[%clk
0:03:04.8]} 10. Kh1 {[%clk 0:03:03.6]} 10... O-O {[%clk 0:03:04.7]} 11. f4
{[%clk 0:03:04.5]} 11... e5 {[%clk 0:03:03.2]} 12. Nxc6 {[%clk 0:02:54.2]} 12...
bxc6 {[%clk 0:03:02.9]} 13. Qd2 {[%clk 0:02:47.9]} 13... Bb7 {[%clk 0:02:59.7]}
14. Rad1 {[%clk 0:02:47.8]} 14... Qd7 {[%clk 0:02:59.1]} 15. Qxd6 {[%clk
0:02:46.3]} 15... Qxd6 {[%clk 0:02:59.6]} 16. Rxd6 {[%clk 0:02:47.7]} 16... c5
{[%clk 0:02:57.6]} 17. Nd5 {[%clk 0:02:44.1]} 17... Nxd5 {[%clk 0:02:56.8]} 18.
cxd5 {[%clk 0:02:44.7]} 18... exf4 {[%clk 0:02:55.3]} 19. Bxc5 {[%clk
0:02:42.7]} 19... Rfe8 {[%clk 0:02:54.5]} 20. Bf3 {[%clk 0:02:40.5]} 20... Rab8
{[%clk 0:02:52.2]} 21. b4 {[%clk 0:02:39]} 21... Rbc8 {[%clk 0:02:45.6]} 22. Rd7
{[%clk 0:02:38.8]} 22... Ba8 {[%clk 0:02:45.8]} 23. Rd1 {[%clk 0:02:33.6]} 23...
a5 {[%clk 0:02:45.7]} 24. a3 {[%clk 0:02:34.2]} 24... axb4 {[%clk 0:02:46.3]}
25. axb4 {[%clk 0:02:36.1]} 25... Bf8 {[%clk 0:02:41.7]} 26. Rc1 {[%clk
0:02:32.4]} 26... Bxc5 {[%clk 0:02:41.1]} 27. bxc5 {[%clk 0:02:33.4]} 27... f5
{[%clk 0:02:35.6]} 28. exf5 {[%clk 0:02:28.7]} 28... gxf5 {[%clk 0:02:34.5]} 29.
h4 {[%clk 0:02:25.7]} 29... Re5 {[%clk 0:02:34.9]} 30. h5 {[%clk 0:02:25.5]}
30... h6 {[%clk 0:02:24]} 31. Kg1 {[%clk 0:02:21.2]} 31... Kf8 {[%clk
0:02:17.8]} 32. Kf2 {[%clk 0:02:16.5]} 32... Ke8 {[%clk 0:02:18.3]} 33. Rh7
{[%clk 0:02:16.3]} 33... Bxd5 {[%clk 0:02:17.5]} 34. Rxh6 {[%clk 0:02:03.2]}
34... Bxf3 {[%clk 0:02:15.7]} 35. Kxf3 {[%clk 0:02:04.6]} 35... Rexc5 {[%clk
0:02:15.4]} 36. Rxc5 {[%clk 0:02:04.9]} 36... Rxc5 {[%clk 0:02:16.1]} 37. Kxf4
{[%clk 0:02:06.5]} 37... Kf7 {[%clk 0:02:16.8]} 38. Ra6 {[%clk 0:02:00.6]} 38...
Kg7 {[%clk 0:02:15.1]} 39. Kg5 {[%clk 0:02:01.7]} 39... Rb5 {[%clk 0:02:12.5]}
40. Ra7+ {[%clk 0:02:02.4]} 40... Kh8 {[%clk 0:02:12.9]} 41. h6 {[%clk
0:02:01.5]} 41... Rb2 {[%clk 0:02:09.6]} 42. g3 {[%clk 0:02:00.7]} 42... Rb3
{[%clk 0:02:08.6]} 43. Kf4 {[%clk 0:02:00.8]} 43... Rb5 {[%clk 0:02:05.2]} 44.
Rf7 {[%clk 0:01:57.3]} 44... Rb6 {[%clk 0:02:02.8]} 45. Kg5 {[%clk 0:01:57]}
45... f4 {[%clk 0:01:53.9]} 46. gxf4 {[%clk 0:01:53.6]} 46... Kg8 {[%clk
0:01:53.7]} 47. Ra7 {[%clk 0:01:53.2]} 47... Kh8 {[%clk 0:01:52.2]} 48. f5
{[%clk 0:01:54.4]} 48... Kg8 {[%clk 0:01:51.4]} 49. f6 {[%clk 0:01:55.8]} 49...
Kh8 {[%clk 0:01:50.6]} 50. Kg6 {[%clk 0:01:56.7]} 50... Rc6 {[%clk 0:01:43.7]}
51. Ra8+ {[%clk 0:01:53.4]} 51... Rc8 {[%clk 0:01:43.6]} 52. Rxc8# {[%clk
0:01:54.5]} 1

[Event "Torneo Nuevo Centro. Jornada 10"]
[Site "Chess.com"]
[Date "2020.08.21"]
[Round "8"]
[White "Ainsa Jimenez, Lucas"]
[Black "Gómez Alonso, Óscar"]
[Result "0-1"]
[WhiteElo "1170"]
[BlackElo "1823"]
[TimeControl "180+2"]
[EndTime "11:57:30 PDT"]
[Termination "Victoria de osgo78 por jaque mate"]

1. e4 {[%clk 0:02:58.2]} 1... c5 {[%clk 0:03:00.7]} 2. Nf3 {[%clk 0:02:57.3]}
2... e6 {[%clk 0:03:00.8]} 3. Bc4 {[%clk 0:02:55.8]} 3... Qc7 {[%clk 0:02:58.1]}
4. d3 {[%clk 0:02:54.6]} 4... Nc6 {[%clk 0:02:58.3]} 5. Nc3 {[%clk 0:02:53.5]}
5... a6 {[%clk 0:02:59.1]} 6. O-O {[%clk 0:02:49.2]} 6... b5 {[%clk 0:02:59.4]}
7. Bb3 {[%clk 0:02:46.5]} 7... Na5 {[%clk 0:03:00]} 8. g3 {[%clk 0:02:41.4]}
8... Nxb3 {[%clk 0:03:00.4]} 9. axb3 {[%clk 0:02:41.3]} 9... Bb7 {[%clk
0:03:01.1]} 10. Bf4 {[%clk 0:02:34.5]} 10... d6 {[%clk 0:02:57.8]} 11. e5 {[%clk
0:02:31]} 11... d5 {[%clk 0:02:56.4]} 12. Re1 {[%clk 0:02:28.2]} 12... Qc6
{[%clk 0:02:52.2]} 13. Qe2 {[%clk 0:02:14.7]} 13... b4 {[%clk 0:02:47.4]} 14.
Nd1 {[%clk 0:02:12.9]} 14... d4 {[%clk 0:02:47.1]} 15. Kg2 {[%clk 0:02:09.1]}
15... Ne7 {[%clk 0:02:42.3]} 16. c3 {[%clk 0:01:57.6]} 16... bxc3 {[%clk
0:02:35.9]} 17. bxc3 {[%clk 0:01:57.6]} 17... Nf5 {[%clk 0:02:35.7]} 18. c4
{[%clk 0:01:48.7]} 18... Be7 {[%clk 0:02:30.7]} 19. Nb2 {[%clk 0:01:40.1]} 19...
h5 {[%clk 0:02:29.4]} 20. h4 {[%clk 0:01:38.8]} 20... Bxh4 {[%clk 0:02:28.3]}
21. gxh4 {[%clk 0:01:30.3]} 21... Nxh4+ {[%clk 0:02:29]} 22. Kg3 {[%clk
0:01:23.3]} 22... Nxf3 {[%clk 0:02:27.5]} 23. Qe4 {[%clk 0:01:15.9]} 23... Nxe1
{[%clk 0:02:25]} 24. Rxe1 {[%clk 0:01:13.6]} 24... Qxe4 {[%clk 0:02:24.8]} 25.
Rxe4 {[%clk 0:01:13.8]} 25... Bxe4 {[%clk 0:02:24.3]} 26. dxe4 {[%clk
0:01:13.9]} 26... h4+ {[%clk 0:02:21.8]} 27. Kg2 {[%clk 0:01:13.2]} 27... f6
{[%clk 0:02:21.5]} 28. exf6 {[%clk 0:01:12.4]} 28... gxf6 {[%clk 0:02:22.6]} 29.
Na4 {[%clk 0:01:11.9]} 29... e5 {[%clk 0:02:22.1]} 30. Bh2 {[%clk 0:01:12.4]}
30... O-O-O {[%clk 0:02:22.2]} 31. Nxc5 {[%clk 0:01:12.2]} 31... Rdg8+ {[%clk
0:02:23.1]} 32. Kf1 {[%clk 0:01:11.1]} 32... a5 {[%clk 0:02:22.6]} 33. Ne6
{[%clk 0:01:05.9]} 33... Kd7 {[%clk 0:02:21.7]} 34. Nc5+ {[%clk 0:01:05.9]}
34... Kc6 {[%clk 0:02:22.3]} 35. Na4 {[%clk 0:01:05.1]} 35... Rb8 {[%clk
0:02:21.7]} 36. Ke2 {[%clk 0:01:02.1]} 36... Rxb3 {[%clk 0:02:22.3]} 37. f3
{[%clk 0:01:01.3]} 37... Ra3 {[%clk 0:02:20.5]} 38. Nb2 {[%clk 0:00:54]} 38...
Ra2 {[%clk 0:02:21.5]} 39. Kf2 {[%clk 0:00:53.7]} 39... Rxb2+ {[%clk 0:02:22.5]}
40. Kg1 {[%clk 0:00:54]} 40... Rxh2 {[%clk 0:02:23.1]} 41. Kxh2 {[%clk
0:00:54.2]} 41... a4 {[%clk 0:02:24.9]} 42. c5 {[%clk 0:00:52.7]} 42... a3
{[%clk 0:02:25.6]} 43. f4 {[%clk 0:00:53.5]} 43... a2 {[%clk 0:02:26.4]} 44. f5
{[%clk 0:00:54.2]} 44... a1=Q {[%clk 0:02:25.4]} 45. Kg2 {[%clk 0:00:54.1]}
45... Qb2+ {[%clk 0:02:26]} 46. Kh3 {[%clk 0:00:53.8]} 46... Qc3+ {[%clk
0:02:26.2]} 47. Kg4 {[%clk 0:00:53.9]} 47... Qg3# {[%clk 0:02:28.1]} 0

[Event "Torneo Nuevo Centro. Jornada 10"]
[Site "Chess.com"]
[Date "2020.08.21"]
[Round "8"]
[White "Sanchis Bon, Sergi"]
[Black "Garrido Silos, Pablo"]
[Result "0-1"]
[WhiteElo "1001"]
[BlackElo "1441"]
[TimeControl "180+2"]
[EndTime "11:57:41 PDT"]
[Termination "Victoria de Picotina por tiempo"]

1. e4 {[%clk 0:03:01.9]} 1... e6 {[%clk 0:03:00.5]} 2. e5 {[%clk 0:02:56.4]}
2... c5 {[%clk 0:03:00.4]} 3. c4 {[%clk 0:02:51.9]} 3... Nc6 {[%clk 0:03:00.6]}
4. Nf3 {[%clk 0:02:41.7]} 4... Qc7 {[%clk 0:02:58.9]} 5. Nc3 {[%clk 0:02:31]}
5... Nxe5 {[%clk 0:02:58]} 6. Nxe5 {[%clk 0:02:29.9]} 6... Qxe5+ {[%clk
0:02:59.9]} 7. Qe2 {[%clk 0:02:29.6]} 7... Qxe2+ {[%clk 0:03:00.4]} 8. Bxe2
{[%clk 0:02:29]} 8... a6 {[%clk 0:03:01.8]} 9. d3 {[%clk 0:02:24.5]} 9... Nf6
{[%clk 0:03:02]} 10. Bd2 {[%clk 0:02:23.6]} 10... Be7 {[%clk 0:03:03]} 11. O-O-O
{[%clk 0:02:22.2]} 11... O-O {[%clk 0:03:03.6]} 12. g4 {[%clk 0:02:10.7]} 12...
d5 {[%clk 0:03:03.4]} 13. cxd5 {[%clk 0:02:09.5]} 13... exd5 {[%clk 0:03:03.5]}
14. d4 {[%clk 0:02:02.8]} 14... cxd4 {[%clk 0:03:02.1]} 15. Na4 {[%clk
0:02:01.4]} 15... Bxg4 {[%clk 0:02:56.4]} 16. Bxg4 {[%clk 0:01:56.4]} 16... Nxg4
{[%clk 0:02:58.3]} 17. Rhg1 {[%clk 0:01:52.3]} 17... Rac8+ {[%clk 0:02:57.9]}
18. Kb1 {[%clk 0:01:50.5]} 18... Nxf2 {[%clk 0:02:51.9]} 19. Rde1 {[%clk
0:01:45.1]} 19... Ne4 {[%clk 0:02:50.2]} 20. Bh6 {[%clk 0:01:33.7]} 20... Bf6
{[%clk 0:02:46.8]} 21. Nb6 {[%clk 0:01:24.5]} 21... Rc6 {[%clk 0:02:44.3]} 22.
Nd7 {[%clk 0:01:23.3]} 22... Rd8 {[%clk 0:02:34.6]} 23. Nxf6+ {[%clk 0:01:20.1]}
23... Rxf6 {[%clk 0:02:35.6]} 24. Bxg7 {[%clk 0:01:17.4]} 24... Rg6 {[%clk
0:02:28.5]} 25. Rxg6 {[%clk 0:01:12.1]} 25... fxg6 {[%clk 0:02:28.5]} 26. Bxd4
{[%clk 0:01:09.8]} 26... Rf8 {[%clk 0:02:24.1]} 27. Rc1 {[%clk 0:00:57.1]} 27...
Rf3 {[%clk 0:02:19.9]} 28. Rc7 {[%clk 0:00:53.6]} 28... Rf1+ {[%clk 0:02:18.7]}
29. Kc2 {[%clk 0:00:51.7]} 29... Rf7 {[%clk 0:02:15.9]} 30. Rxf7 {[%clk
0:00:46.1]} 30... Kxf7 {[%clk 0:02:15.9]} 31. Kd3 {[%clk 0:00:39.6]} 31... Ke6
{[%clk 0:02:15.8]} 32. b4 {[%clk 0:00:34.8]} 32... b5 {[%clk 0:02:14.7]} 33. a3
{[%clk 0:00:26]} 33... Nd6 {[%clk 0:02:14.3]} 34. Bc5 {[%clk 0:00:21.6]} 34...
Nc4 {[%clk 0:02:13.6]} 35. a4 {[%clk 0:00:16.2]} 35... bxa4 {[%clk 0:02:13.1]}
36. Kc2 {[%clk 0:00:15.6]} 36... a3 {[%clk 0:02:13.4]} 37. Kb3 {[%clk
0:00:10.1]} 37... Ke5 {[%clk 0:02:10.3]} 0

[Event "Torneo Nuevo Centro. Jornada 10"]
[Site "Chess.com"]
[Date "2020.08.21"]
[Round "8"]
[White "Carbonell Bofill, Carlos Eloy"]
[Black "Rodriguez Rodriguez, Joan David "]
[Result "0-1"]
[WhiteElo "1902"]
[BlackElo "1755"]
[TimeControl "180+2"]
[EndTime "11:57:58 PDT"]
[Termination "Victoria de Not_Jr_chess por jaque mate"]

1. d4 {[%clk 0:03:01.9]} 1... d5 {[%clk 0:02:49.1]} 2. Nf3 {[%clk 0:03:01.9]}
2... Nf6 {[%clk 0:02:37.9]} 3. Bg5 {[%clk 0:02:54.4]} 3... Nbd7 {[%clk
0:02:37.8]} 4. Nbd2 {[%clk 0:02:54.3]} 4... h6 {[%clk 0:02:38.6]} 5. Bh4 {[%clk
0:02:50.2]} 5... c6 {[%clk 0:02:39.6]} 6. c3 {[%clk 0:02:51]} 6... e6 {[%clk
0:02:29.6]} 7. Qc2 {[%clk 0:02:51.2]} 7... Be7 {[%clk 0:02:30.4]} 8. e4 {[%clk
0:02:44.4]} 8... dxe4 {[%clk 0:02:30]} 9. Nxe4 {[%clk 0:02:44.9]} 9... a5 {[%clk
0:02:20.9]} 10. a4 {[%clk 0:02:34.1]} 10... Nxe4 {[%clk 0:02:07.7]} 11. Bxe7
{[%clk 0:02:36]} 11... Qxe7 {[%clk 0:02:07.3]} 12. Qxe4 {[%clk 0:02:36.3]} 12...
Nf6 {[%clk 0:02:08.4]} 13. Qe5 {[%clk 0:02:35.6]} 13... O-O {[%clk 0:02:04.7]}
14. Bd3 {[%clk 0:02:34.7]} 14... Rd8 {[%clk 0:01:47.4]} 15. O-O {[%clk
0:02:30.8]} 15... Rd5 {[%clk 0:01:47.4]} 16. Qe3 {[%clk 0:02:10.9]} 16... Rh5
{[%clk 0:01:31.7]} 17. Ne5 {[%clk 0:02:08.7]} 17... Nd5 {[%clk 0:01:24.9]} 18.
Qe4 {[%clk 0:01:54.5]} 18... Nf6 {[%clk 0:01:19.9]} 19. Qe2 {[%clk 0:01:50.4]}
19... Bd7 {[%clk 0:00:44.8]} 20. f4 {[%clk 0:01:50.5]} 20... g6 {[%clk
0:00:34.7]} 21. Kh1 {[%clk 0:00:54.2]} 21... Kg7 {[%clk 0:00:31.3]} 22. Rg1
{[%clk 0:00:46.7]} 22... Nd5 {[%clk 0:00:18.9]} 23. Raf1 {[%clk 0:00:43.9]}
23... Rxh2+ {[%clk 0:00:18.2]} 24. Kxh2 {[%clk 0:00:41.8]} 24... Qh4# {[%clk
0:00:20.1]} 0